bitfinex/quotes_BTCUSD_20241229
["timestamp","ask_amount","ask_price","bid_price","bid_amount"]
[1735480996583,0.337425,95272.0,95271.0,0.24547985]
[1735480996831,0.337425,95272.0,95271.0,0.10398632]
[1735480997034,0.337425,95272.0,95271.0,0.11298632]
[1735480998314,0.338425,95272.0,95271.0,0.016]
[1735480998516,0.0816,95271.0,95268.0,0.0482517]
[1735480998728,0.291527,95271.0,95268.0,0.0268737]
[1735480998943,0.209931,95269.0,95268.0,0.0268737]
[1735480999144,0.0816,95268.0,95267.0,0.0268737]
[1735481000232,0.0816,95268.0,95259.0,0.12683323]
[1735481000233,0.0459,95267.0,95259.0,0.12683323]
[1735481000468,0.209951,95260.0,95259.0,0.08510934]
[1735481000694,0.342051,95260.0,95259.0,0.08510934]
[1735481001353,0.3629087,95260.0,95259.0,0.08510934]
[1735481001696,0.0823,95259.0,95248.0,0.10398632]
[1735481001902,0.209975,95249.0,95248.0,0.10398632]
[1735481002061,0.209975,95249.0,95248.0,0.09696954]
[1735481003113,0.210975,95249.0,95248.0,0.10596954]
[1735481003291,0.210975,95249.0,95248.0,0.11396954]
[1735481003688,0.210975,95249.0,95248.0,0.10596954]
[1735481003928,0.210975,95249.0,95248.0,0.11496954]
[1735481004077,0.211975,95249.0,95248.0,0.11496954]
[1735481005874,0.211975,95249.0,95248.0,0.08495178]
[1735481006288,0.211975,95249.0,95248.0,0.018]
[1735481007316,0.002,95249.0,95242.0,0.17515198]
[1735481007529,0.209989,95243.0,95242.0,0.17515198]
[1735481007738,0.209989,95243.0,95242.0,0.2791383]
[1735481008767,0.342089,95243.0,95242.0,0.2881383]
[1735481009004,0.342089,95243.0,95242.0,0.11298632]
[1735481009008,0.36349874,95243.0,95242.0,0.11298632]
[1735481009235,0.15350974,95243.0,95236.0,0.23563332]
[1735481009494,0.210002,95237.0,95236.0,0.23563332]
[1735481009731,0.209991,95242.0,95236.0,0.23563332]
[1735481010659,0.209991,95242.0,95236.0,0.1413661]
[1735481011138,0.210991,95242.0,95236.0,0.1503661]
[1735481011692,0.420983,95242.0,95236.0,0.1503661]
[1735481012195,0.420983,95242.0,95237.0,0.23563332]
[1735481012635,0.210001,95238.0,95236.0,0.009]
[1735481013346,0.210001,95238.0,95229.0,0.0001706]
[1735481013572,0.210001,95238.0,95237.0,0.009]
[1735481014038,0.210001,95238.0,95229.0,0.0001706]
[1735481014265,0.211001,95238.0,95236.0,0.009]
[1735481014513,0.212001,95238.0,95236.0,0.009]
[1735481015648,0.211001,95238.0,95229.0,0.0001706]
[1735481015863,0.211001,95238.0,95237.0,0.009]
[1735481016036,0.212001,95238.0,95237.0,0.009]
[1735481016251,0.211001,95238.0,95229.0,0.0001706]
[1735481016444,0.212001,95238.0,95236.0,0.009]
[1735481016642,0.213001,95238.0,95236.0,0.009]
[1735481016846,0.211001,95238.0,95229.0,0.0061706]
[1735481017046,0.211001,95238.0,95237.0,0.009]
[1735481017403,0.211001,95238.0,95229.0,0.0001706]
[1735481017603,0.212001,95238.0,95229.0,0.0061706]
[1735481017811,0.210008,95235.0,95229.0,0.0061706]
[1735481018550,0.210008,95235.0,95229.0,0.0056706]
[1735481019272,0.213001,95238.0,95236.0,0.009]
[1735481019516,0.213001,95238.0,95220.0,0.1107706]
[1735481019733,0.212001,95238.0,95220.0,0.1107706]
[1735481019985,0.211001,95238.0,95237.0,0.006]
[1735481020538,0.210001,95238.0,95220.0,0.1107706]
[1735481020741,0.212001,95238.0,95220.0,0.1257706]
[1735481021101,0.211001,95238.0,95232.0,0.10398632]
[1735481021332,0.211001,95238.0,95237.0,0.009]
[1735481021465,0.211001,95238.0,95237.0,0.11298632]
[1735481021665,0.210001,95238.0,95237.0,0.10398632]
[1735481022738,0.211001,95238.0,95237.0,0.10498632]
[1735481022944,0.001,95238.0,95237.0,0.10498632]
[1735481023081,0.002,95238.0,95237.0,0.26472752]
[1735481023284,0.001,95238.0,95237.0,0.26472752]
[1735481023724,0.002,95238.0,95237.0,0.26472752]
[1735481024124,0.00013867,95249.0,95237.0,0.26372752]
[1735481024389,0.00013867,95249.0,95248.0,0.10398632]
[1735481024876,0.07785429,95249.0,95248.0,0.10398632]
[1735481025057,0.07753867,95249.0,95248.0,0.10398632]
[1735481026214,0.00013867,95249.0,95248.0,0.10398632]
[1735481026654,0.00113867,95249.0,95248.0,0.11298632]
[1735481026859,0.00113867,95249.0,95248.0,0.10398632]
[1735481026970,0.00013867,95249.0,95248.0,0.10398632]
[1735481027359,0.02252342,95249.0,95248.0,0.11298632]
[1735481027952,0.02352342,95249.0,95248.0,0.12198632]
[1735481028482,0.02352342,95249.0,95248.0,0.23308632]
[1735481029626,0.02152342,95249.0,95248.0,0.10398632]
[1735481029859,0.02252342,95249.0,95248.0,0.11298632]
[1735481030054,0.02352342,95249.0,95248.0,0.12198632]
[1735481030264,0.03898504,95249.0,95248.0,0.11298632]
[1735481030440,0.03798504,95249.0,95248.0,0.10398632]
[1735481030787,0.03798504,95249.0,95248.0,0.12198632]
[1735481030788,0.01760029,95249.0,95248.0,0.12198632]
[1735481031007,0.00113867,95249.0,95248.0,0.19418632]
[1735481031843,0.00213867,95249.0,95248.0,0.20318632]
[1735481032971,0.00213867,95249.0,95248.0,0.25248632]
[1735481033201,0.00213867,95249.0,95248.0,0.36358632]
[1735481035581,0.00113867,95249.0,95248.0,0.35458632]
[1735481036102,0.00213867,95249.0,95248.0,0.36358632]
[1735481036400,0.00113867,95249.0,95248.0,0.35954632]
[1735481036700,0.00113867,95249.0,95248.0,0.36854632]
[1735481037002,0.00013867,95249.0,95248.0,0.35954632]
[1735481037359,0.00113867,95249.0,95248.0,0.35954632]
[1735481037582,0.00113867,95249.0,95248.0,0.36854632]
[1735481037785,0.00122417,95249.0,95248.0,0.37898258]
[1735481038368,0.00122417,95249.0,95248.0,0.91838258]
[1735481039813,8.54e-05,95275.0,95274.0,0.3]
[1735481040016,8.54e-05,95275.0,95274.0,0.48098632]
[1735481041194,8.54e-05,95275.0,95274.0,0.48798632]
[1735481041997,8.54e-05,95275.0,95274.0,0.41098632]
[1735481042426,8.54e-05,95275.0,95274.0,0.41998632]
[1735481045531,8.54e-05,95275.0,95274.0,0.50058632]
[1735481045734,8.54e-05,95275.0,95274.0,0.61168632]
[1735481046096,8.54e-05,95275.0,95274.0,0.60058632]
[1735481046978,8.54e-05,95275.0,95274.0,0.59358632]
[1735481047295,8.54e-05,95275.0,95274.0,0.59058632]
[1735481047803,8.54e-05,95275.0,95274.0,0.58458632]
[1735481048221,8.54e-05,95275.0,95274.0,0.59358632]
[1735481048848,8.54e-05,95275.0,95274.0,0.61336524]
[1735481049058,8.54e-05,95275.0,95274.0,0.60436524]
[1735481049256,8.54e-05,95275.0,95274.0,0.63486524]
[1735481049435,8.54e-05,95275.0,95274.0,0.64386524]
[1735481050425,8.54e-05,95275.0,95274.0,0.72446524]
[1735481052756,8.54e-05,95275.0,95274.0,0.77126524]
[1735481060933,8.54e-05,95275.0,95274.0,0.64386524]
[1735481064858,8.54e-05,95275.0,95274.0,1.30716524]
[1735481065097,0.0802,95321.0,95288.0,0.635]
[1735481065301,0.00035253,95289.0,95288.0,0.73898632]
[1735481066385,0.00035253,95289.0,95288.0,1.27838632]
[1735481066785,0.00035253,95289.0,95288.0,1.28738632]
[1735481067132,0.00035253,95289.0,95288.0,1.27838632]
[1735481067687,0.00035253,95289.0,95288.0,1.28738632]
[1735481068608,0.00035253,95289.0,95288.0,1.29638632]
[1735481069517,0.00035253,95289.0,95288.0,1.17248632]
[1735481070104,0.00035253,95289.0,95288.0,0.63308632]
[1735481072135,0.04145253,95297.0,95288.0,0.63308632]
[1735481072402,4.874e-05,95300.0,95299.0,0.4]
[1735481072573,4.874e-05,95300.0,95299.0,0.40398632]
[1735481073402,0.00013414,95300.0,95299.0,0.40398632]
[1735481073870,0.00013414,95300.0,95299.0,0.41298632]
[1735481074073,0.08033414,95300.0,95299.0,0.42198632]
[1735481075143,0.12643414,95300.0,95299.0,0.42198632]
[1735481077948,0.08033414,95300.0,95299.0,0.42198632]
[1735481079811,0.08072138,95300.0,95299.0,0.12198632]
[1735481080064,0.12812138,95300.0,95299.0,0.12198632]
[1735481080898,0.12812138,95300.0,95299.0,0.11298632]
[1735481081097,0.144574,95300.0,95299.0,0.11298632]
[1735481081274,0.14418676,95300.0,95299.0,0.11298632]
[1735481081682,0.14418676,95300.0,95299.0,0.08261533]
[1735481082036,0.14418676,95300.0,95299.0,0.09161533]
[1735481082235,0.24543455,95304.0,95299.0,0.08261533]
[1735481082802,0.209859,95302.0,95299.0,0.02778894]
[1735481082923,0.419718,95302.0,95299.0,0.03578894]
[1735481083458,0.419718,95302.0,95299.0,0.02778894]
[1735481083858,0.419718,95302.0,95299.0,0.03378894]
[1735481084263,0.419718,95302.0,95299.0,0.02778894]
[1735481084643,0.419718,95302.0,95299.0,0.03478894]
[1735481085217,0.209899,95284.0,95270.0,0.1]
[1735481085368,0.125,95283.0,95275.0,0.3]
[1735481085574,0.125,95283.0,95282.0,0.10398632]
[1735481086638,0.125,95283.0,95282.0,0.11298632]
[1735481087054,0.125,95283.0,95282.0,0.10398632]
[1735481087254,0.14600779,95283.0,95282.0,0.10398632]
[1735481087912,0.14600779,95283.0,95282.0,0.10898632]
[1735481088313,0.14700779,95283.0,95282.0,0.09659981]
[1735481088694,0.02100779,95283.0,95282.0,0.38759981]
[1735481088913,0.02100779,95283.0,95282.0,0.49839981]
[1735481089229,0.001,95283.0,95282.0,0.50039981]
[1735481089959,0.02126037,95286.0,95282.0,0.49339981]
[1735481090089,0.02126037,95286.0,95285.0,0.21478632]
[1735481090295,0.02126037,95286.0,95285.0,0.29278632]
[1735481091030,0.02126037,95286.0,95285.0,0.21478632]
[1735481091389,0.02226037,95286.0,95285.0,0.21478632]
[1735481092261,0.02326037,95286.0,95285.0,0.22178632]
[1735481092793,0.002,95286.0,95285.0,0.22178632]
[1735481093446,0.001,95286.0,95285.0,0.22178632]
[1735481093772,0.002,95286.0,95285.0,0.23078632]
[1735481094182,0.002,95286.0,95285.0,0.11998632]
[1735481096077,0.002,95286.0,95285.0,0.23078632]
[1735481096352,0.002,95286.0,95285.0,0.28048632]
[1735481096914,0.001,95286.0,95285.0,0.27348632]
[1735481097272,8.54e-05,95302.0,95301.0,0.4]
[1735481097476,8.54e-05,95302.0,95301.0,0.50398632]
[1735481098819,0.02077341,95302.0,95301.0,0.50398632]
[1735481099771,0.02114809,95302.0,95301.0,0.51298632]
[1735481099932,0.02114809,95302.0,95301.0,0.52098632]
[1735481100575,0.10287341,95302.0,95301.0,0.11298632]
[1735481101100,0.10287341,95302.0,95301.0,0.12098632]
[1735481102246,0.10287341,95302.0,95301.0,0.09684632]
[1735481103026,0.10287341,95302.0,95301.0,0.08784632]
[1735481103499,0.10387341,95302.0,95301.0,0.08884632]
[1735481103699,0.10387341,95302.0,95301.0,0.09684632]
[1735481103882,0.10287341,95302.0,95301.0,0.08784632]
[1735481104034,0.10287341,95302.0,95301.0,0.04926932]
[1735481104227,0.10287341,95302.0,95301.0,0.04126932]
[1735481104556,0.10287341,95302.0,95301.0,0.04526932]
[1735481105268,0.10387341,95302.0,95301.0,0.05026932]
[1735481105569,0.10287341,95302.0,95301.0,0.04126932]
[1735481105734,0.10387341,95302.0,95301.0,0.05026932]
[1735481106141,0.2099,95284.0,95282.0,0.0001708]
[1735481106343,0.0485,95282.0,95265.0,0.1]
[1735481107166,0.209923,95273.0,95265.0,0.1]
[1735481107372,0.209933,95269.0,95255.0,0.3]
[1735481107547,0.209941,95265.0,95255.0,0.3]
[1735481108155,0.20995,95261.0,95255.0,0.3]
[1735481108365,0.209941,95265.0,95255.0,0.3]
[1735481108696,0.02094779,95256.0,95255.0,0.3]
[1735481109271,0.209912,95278.0,95268.0,0.3]
[1735481109472,0.00014929,95284.0,95268.0,0.3]
[1735481109669,0.02053106,95272.0,95268.0,0.3]
[1735481109881,0.02053106,95272.0,95271.0,0.10398632]
[1735481110888,0.02153106,95272.0,95271.0,0.10398632]
[1735481112153,0.02053106,95272.0,95271.0,0.11298632]
[1735481112558,0.083,95274.0,95271.0,0.11298632]
[1735481112771,0.001,95272.0,95271.0,0.10998632]
[1735481112989,0.0002,95272.0,95271.0,0.10998632]
[1735481113142,0.0455,95273.0,95271.0,0.10398632]
[1735481113546,0.001,95272.0,95271.0,0.10998632]
[1735481113803,0.02156798,95272.0,95271.0,0.10998632]
[1735481114214,0.02056798,95272.0,95271.0,0.10398632]
[1735481114369,0.02056798,95272.0,95271.0,0.07929313]
[1735481114573,0.02056798,95272.0,95271.0,0.08729313]
[1735481115116,0.02056798,95272.0,95271.0,0.07929313]
[1735481115623,0.02056798,95272.0,95271.0,0.08729313]
[1735481115847,0.02156798,95272.0,95271.0,0.09529313]
[1735481116049,0.02056798,95272.0,95271.0,0.08729313]
[1735481116495,0.02156798,95272.0,95271.0,0.09529313]
[1735481117834,0.001,95272.0,95271.0,0.09529313]
[1735481118369,0.001,95272.0,95271.0,0.17099313]
[1735481119214,0.001,95272.0,95271.0,0.28179313]
[1735481120657,0.001,95272.0,95271.0,2.58179313]
[1735481121521,0.001,95272.0,95271.0,2.58196393]
[1735481121723,0.0010854,95272.0,95271.0,2.58196393]
[1735481122643,8.54e-05,95272.0,95271.0,2.57396393]
[1735481122841,8.54e-05,95272.0,95271.0,2.61896393]
[1735481123042,0.0010854,95272.0,95271.0,2.62696393]
[1735481123763,8.54e-05,95272.0,95271.0,2.61896393]
[1735481124194,0.0010854,95272.0,95271.0,2.62696393]
[1735481124624,0.0010854,95272.0,95271.0,2.61896393]
[1735481125003,0.0010854,95272.0,95271.0,2.62796393]
[1735481125199,0.0010854,95272.0,95271.0,3.16736393]
[1735481125655,0.0010854,95272.0,95271.0,3.15836393]
[1735481125853,0.0010854,95272.0,95271.0,3.16736393]
[1735481126407,0.00014929,95284.0,95283.0,1.1768]
[1735481126729,0.00014929,95284.0,95283.0,1.28078632]
[1735481127301,8.54e-05,95302.0,95301.0,0.4816]
[1735481127456,8.54e-05,95302.0,95301.0,0.58558632]
[1735481130087,8.54e-05,95302.0,95301.0,0.70538632]
[1735481130292,8.54e-05,95302.0,95301.0,1.24478632]
[1735481130499,8.54e-05,95302.0,95301.0,1.28978632]
[1735481131444,8.54e-05,95302.0,95301.0,1.05238632]
[1735481132203,8.54e-05,95302.0,95301.0,0.51298632]
[1735481132806,8.54e-05,95302.0,95301.0,0.50398632]
[1735481133251,8.54e-05,95302.0,95301.0,0.51298632]
[1735481134231,8.54e-05,95302.0,95301.0,0.52198632]
[1735481134875,8.54e-05,95302.0,95301.0,0.51298632]
[1735481136232,8.54e-05,95302.0,95301.0,0.50398632]
[1735481136528,8.54e-05,95302.0,95301.0,0.52198632]
[1735481136768,8.54e-05,95302.0,95301.0,0.51298632]
[1735481137546,8.54e-05,95302.0,95301.0,0.52198632]
[1735481137891,8.54e-05,95302.0,95301.0,0.51298632]
[1735481138088,8.54e-05,95302.0,95301.0,0.52198632]
[1735481139621,8.54e-05,95302.0,95301.0,0.51298632]
[1735481139809,8.54e-05,95302.0,95301.0,0.50398632]
[1735481140123,8.54e-05,95302.0,95301.0,0.52198632]
[1735481140323,8.54e-05,95302.0,95301.0,0.51298632]
[1735481140527,8.54e-05,95302.0,95301.0,0.62378632]
[1735481141005,8.54e-05,95302.0,95301.0,0.61478632]
[1735481141130,8.54e-05,95302.0,95301.0,0.62378632]
[1735481141448,8.54e-05,95302.0,95301.0,0.63278632]
[1735481142853,8.54e-05,95302.0,95301.0,0.62378632]
[1735481143050,8.54e-05,95302.0,95301.0,0.63278632]
[1735481143448,8.54e-05,95302.0,95301.0,0.62378632]
[1735481143666,8.54e-05,95302.0,95301.0,0.61478632]
[1735481144003,8.54e-05,95302.0,95301.0,0.63278632]
[1735481144205,8.54e-05,95302.0,95301.0,0.62378632]
[1735481144507,8.54e-05,95302.0,95301.0,0.61478632]
[1735481144724,8.54e-05,95302.0,95301.0,0.62378632]
[1735481144933,8.54e-05,95302.0,95301.0,0.63278632]
[1735481145305,8.54e-05,95302.0,95301.0,0.64317173]
[1735481146102,8.54e-05,95302.0,95301.0,0.63417173]
[1735481146531,8.54e-05,95302.0,95301.0,0.64317173]
[1735481146848,8.54e-05,95302.0,95301.0,0.62517173]
[1735481147355,8.54e-05,95302.0,95301.0,0.64317173]
[1735481147707,8.54e-05,95302.0,95301.0,0.63417173]
[1735481147919,8.54e-05,95302.0,95301.0,1.17357173]
[1735481148151,8.54e-05,95302.0,95301.0,1.18257173]
[1735481151298,8.54e-05,95302.0,95301.0,0.64317173]
[1735481153704,8.54e-05,95302.0,95301.0,0.6758983]
[1735481154226,8.54e-05,95302.0,95301.0,1.2152983]
[1735481156409,8.54e-05,95302.0,95301.0,2.05038038]
[1735481156820,0.02112716,95322.0,95303.0,0.1108]
[1735481157060,0.02112716,95322.0,95303.0,0.24751289]
[1735481158272,0.02112716,95322.0,95314.0,0.5108]
[1735481158489,0.00020869,95315.0,95314.0,0.64751289]
[1735481159275,8.54e-05,95326.0,95325.0,0.4]
[1735481159499,8.54e-05,95326.0,95325.0,0.53671289]
[1735481159649,0.02530733,95326.0,95325.0,0.53671289]
[1735481159858,0.02070127,95326.0,95325.0,0.53671289]
[1735481160054,0.209795,95331.0,95325.0,0.53671289]
[1735481160339,0.209795,95331.0,95330.0,0.10398632]
[1735481160524,0.209795,95331.0,95330.0,0.13671289]
[1735481161415,0.2310421,95331.0,95330.0,0.13671289]
[1735481162222,0.2310421,95331.0,95330.0,0.48466376]
[1735481162814,0.2310421,95331.0,95330.0,0.48866376]
[1735481163393,0.2310421,95331.0,95330.0,0.49766376]
[1735481164810,0.2310421,95331.0,95330.0,0.14971289]
[1735481165167,0.0212471,95331.0,95330.0,0.14971289]
[1735481165714,0.02585302,95331.0,95330.0,0.14971289]
[1735481165936,0.02272464,95331.0,95330.0,0.14971289]
[1735481166290,0.0212471,95331.0,95330.0,0.10798632]
[1735481166503,0.0212471,95331.0,95330.0,0.18478632]
[1735481167115,0.0212471,95331.0,95330.0,0.11698632]
[1735481167310,0.0212471,95331.0,95330.0,0.10398632]
[1735481167787,0.0212471,95331.0,95330.0,0.11898632]
[1735481168201,0.0212471,95331.0,95330.0,0.11298632]
[1735481168411,0.02443879,95331.0,95330.0,0.11298632]
[1735481168613,0.02586955,95331.0,95330.0,0.12198632]
[1735481169718,0.02595495,95331.0,95330.0,0.10079751]
[1735481169955,0.0213325,95331.0,95330.0,0.10079751]
[1735481170179,0.1451325,95331.0,95330.0,0.05948051]
[1735481170396,0.36024925,95331.0,95330.0,0.05948051]
[1735481171116,0.36024925,95331.0,95330.0,0.05048051]
[1735481171228,0.36024925,95331.0,95330.0,0.04948051]
[1735481171424,0.28444925,95331.0,95330.0,0.04948051]
[1735481171758,0.02665425,95331.0,95330.0,0.05048051]
[1735481172207,0.23644925,95331.0,95330.0,0.05748051]
[1735481172541,0.23644925,95331.0,95330.0,0.05048051]
[1735481173664,0.02665425,95331.0,95330.0,0.05048051]
[1735481174224,0.02665425,95331.0,95330.0,0.04848051]
[1735481174576,0.02665425,95331.0,95330.0,0.05748051]
[1735481174972,0.02665425,95331.0,95330.0,0.09015809]
[1735481175153,0.02665425,95331.0,95330.0,0.08115809]
[1735481175914,0.02665425,95331.0,95330.0,0.09015809]
[1735481176161,0.0213325,95331.0,95330.0,0.09015809]
[1735481176906,0.0213325,95331.0,95330.0,0.43756949]
[1735481178747,8.54e-05,95338.0,95336.0,0.3]
[1735481178893,8.54e-05,95338.0,95337.0,0.1366639]
[1735481180261,0.00327834,95338.0,95337.0,0.1366639]
[1735481180471,0.02392152,95338.0,95337.0,0.1366639]
[1735481181123,0.02392152,95338.0,95337.0,0.1426639]
[1735481181531,0.02072858,95338.0,95337.0,0.1426639]
[1735481181742,0.02072858,95338.0,95337.0,0.10998632]
[1735481181941,0.0239387,95338.0,95337.0,0.10998632]
[1735481182306,0.02072858,95338.0,95337.0,0.11898632]
[1735481182524,0.02072858,95338.0,95337.0,0.11298632]
[1735481182730,0.02072858,95338.0,95337.0,0.10398632]
[1735481183130,0.02072858,95338.0,95337.0,0.11298632]
[1735481184479,0.02072858,95338.0,95337.0,0.11898632]
[1735481185107,0.0260363,95338.0,95337.0,0.11898632]
[1735481191830,0.0743363,95338.0,95337.0,0.11898632]
[1735481192779,0.0260363,95338.0,95337.0,0.11898632]
[1735481195888,0.00534026,95338.0,95337.0,0.11898632]
[1735481196067,0.0024259,95338.0,95337.0,0.11898632]
[1735481196650,0.02380262,95338.0,95337.0,0.11898632]
[1735481196979,0.02137672,95338.0,95337.0,0.11898632]
[1735481200833,0.02137672,95338.0,95337.0,0.15164886]
[1735481201035,0.14947672,95338.0,95337.0,0.11898632]
[1735481201898,0.02137672,95338.0,95337.0,0.15165434]
[1735481202095,0.02137672,95338.0,95337.0,0.11898632]
[1735481202518,0.02137672,95338.0,95337.0,0.15165753]
[1735481202932,0.02137672,95338.0,95337.0,0.49896849]
[1735481203132,0.02137672,95338.0,95337.0,0.46629728]
[1735481204541,0.02137672,95338.0,95337.0,0.10998632]
[1735481204771,0.02137672,95338.0,95337.0,0.10398632]
[1735481205120,0.02137672,95338.0,95337.0,0.11298632]
[1735481205324,0.02137672,95338.0,95337.0,0.11798632]
[1735481207145,0.02146212,95338.0,95337.0,0.10898632]
[1735481207557,0.02146212,95338.0,95337.0,0.11298632]
[1735481207911,0.02146212,95338.0,95337.0,0.10998632]
[1735481208129,0.02146212,95338.0,95337.0,0.11898632]
[1735481208485,0.02146212,95338.0,95337.0,0.11298632]
[1735481208963,0.14956212,95338.0,95337.0,0.07761351]
[1735481210341,0.02146212,95338.0,95337.0,0.07761351]
[1735481211573,0.02154206,95338.0,95337.0,0.07761351]
[1735481214072,0.02154206,95338.0,95337.0,0.03561351]
[1735481214073,0.09774206,95338.0,95337.0,0.03561351]
[1735481214716,0.09774206,95338.0,95337.0,0.06831368]
[1735481214914,0.09774206,95338.0,95337.0,0.05931368]
[1735481215148,0.09774206,95338.0,95337.0,0.05231368]
[1735481215394,0.0974574,95338.0,95337.0,0.06131368]
[1735481215637,0.0974574,95338.0,95337.0,0.06731368]
[1735481216097,0.0974574,95338.0,95337.0,0.05231368]
[1735481216623,0.0974574,95338.0,95337.0,0.06731368]
[1735481217287,0.0974574,95338.0,95337.0,0.41474174]
[1735481217510,0.0974574,95338.0,95337.0,0.38204157]
[1735481219086,0.0974574,95338.0,95337.0,0.44531255]
[1735481219421,0.0974574,95338.0,95337.0,0.42367555]
[1735481219658,0.0974574,95338.0,95337.0,0.10398632]
[1735481221480,0.0974574,95338.0,95337.0,0.07535391]
[1735481221974,0.0212574,95338.0,95337.0,0.07535391]
[1735481225342,0.0312574,95338.0,95337.0,0.07535391]
[1735481232263,0.0312574,95338.0,95337.0,0.07552471]
[1735481234751,0.0322574,95338.0,95337.0,0.08452471]
[1735481235187,0.0322574,95338.0,95337.0,0.08852471]
[1735481236274,0.0322574,95338.0,95337.0,0.08452471]
[1735481236727,0.0322574,95338.0,95337.0,0.08952471]
[1735481239424,0.0322574,95338.0,95337.0,0.0141708]
[1735481239634,0.209784,95336.0,95309.0,0.0797]
[1735481239863,0.209839,95311.0,95310.0,0.10398632]
[1735481240776,0.209855,95304.0,95289.0,0.1251]
[1735481240996,0.02113724,95311.0,95309.0,0.009]
[1735481241220,0.02113724,95311.0,95290.0,0.40398632]
[1735481241221,0.209883,95291.0,95290.0,0.40398632]
[1735481241890,0.21540672,95291.0,95290.0,0.40398632]
[1735481242096,0.21540672,95291.0,95290.0,0.40412501]
[1735481242539,0.21540672,95291.0,95290.0,0.10412501]
[1735481243989,0.23616102,95291.0,95290.0,0.10412501]
[1735481244326,0.23616102,95291.0,95290.0,0.10912501]
[1735481244327,0.23716102,95291.0,95290.0,0.10912501]
[1735481244870,0.23716102,95291.0,95290.0,0.11412501]
[1735481245070,0.23716102,95291.0,95290.0,0.18932501]
[1735481245281,0.02727802,95291.0,95290.0,0.48449581]
[1735481245480,0.0217543,95291.0,95290.0,0.48449581]
[1735481245618,0.0217543,95291.0,95290.0,0.23879581]
[1735481245820,0.02718842,95291.0,95290.0,0.18949581]
[1735481246029,0.23707142,95291.0,95290.0,0.11429581]
[1735481249321,0.23707142,95291.0,95290.0,0.14706444]
[1735481249525,0.23707142,95291.0,95290.0,0.11429581]
[1735481249724,0.23707142,95291.0,95290.0,0.01030949]
[1735481249882,0.209921,95274.0,95271.0,2.3753708]
[1735481250087,0.209921,95274.0,95272.0,0.10398632]
[1735481251424,0.209921,95274.0,95272.0,0.59142688]
[1735481251841,0.210921,95274.0,95272.0,0.10398632]
[1735481252383,0.210921,95274.0,95272.0,0.10998632]
[1735481252384,0.211921,95274.0,95272.0,0.10998632]
[1735481252584,0.209921,95274.0,95272.0,0.10398632]
[1735481252989,0.00131202,95273.0,95272.0,0.10998632]
[1735481253166,0.00131202,95273.0,95272.0,0.11098632]
[1735481254673,0.209921,95274.0,95272.0,0.10498632]
[1735481254824,0.210921,95274.0,95272.0,0.10498632]
[1735481255022,0.210921,95274.0,95272.0,0.10898632]
[1735481255223,0.209921,95274.0,95272.0,0.10798632]
[1735481255392,0.001,95273.0,95272.0,0.10898632]
[1735481255795,0.209921,95274.0,95272.0,0.10798632]
[1735481255993,0.10212773,95273.0,95272.0,0.001]
[1735481256212,0.10081569,95273.0,95272.0,0.001]
[1735481256418,0.10081569,95273.0,95271.0,2.28296309]
[1735481256419,0.209925,95272.0,95271.0,2.28296309]
[1735481256625,0.209925,95272.0,95271.0,2.19968709]
[1735481256826,0.209925,95272.0,95271.0,2.15867799]
[1735481257045,0.21031765,95272.0,95271.0,2.15867799]
[1735481257325,0.21031765,95272.0,95271.0,2.11736799]
[1735481257530,0.21031765,95272.0,95271.0,1.97075599]
[1735481257879,0.31284961,95272.0,95271.0,1.82501499]
[1735481258020,0.32613653,95272.0,95271.0,1.82501499]
[1735481258660,0.43012285,95272.0,95271.0,1.80402199]
[1735481258858,0.43012285,95272.0,95271.0,1.78302899]
[1735481259129,0.43012285,95272.0,95271.0,1.71204299]
[1735481259288,0.43012285,95272.0,95271.0,1.69104999]
[1735481259465,0.41976328,95272.0,95271.0,1.69104999]
[1735481259668,0.42176328,95272.0,95271.0,1.69104999]
[1735481260232,0.50166328,95272.0,95271.0,1.51148574]
[1735481260774,0.39728431,95272.0,95271.0,1.40652074]
[1735481264068,0.39828431,95272.0,95271.0,1.40752074]
[1735481266082,0.29828431,95272.0,95271.0,1.40752074]
[1735481268507,0.21838431,95272.0,95271.0,1.40752074]
[1735481271443,0.21538431,95272.0,95271.0,1.40652074]
[1735481271835,0.21738431,95272.0,95271.0,1.40652074]
[1735481272238,0.21638431,95272.0,95271.0,1.41252074]
[1735481272862,0.21538431,95272.0,95271.0,1.40652074]
[1735481273408,0.21638431,95272.0,95271.0,1.41552074]
[1735481274364,0.209921,95274.0,95271.0,1.41552074]
[1735481274589,0.209925,95272.0,95271.0,1.41552074]
[1735481275006,0.209925,95272.0,95271.0,1.39452774]
[1735481275253,0.209925,95272.0,95271.0,1.33154874]
[1735481275745,0.23060373,95272.0,95271.0,1.24757674]
[1735481276290,0.23060373,95272.0,95271.0,1.20559074]
[1735481276770,0.23060373,95272.0,95271.0,1.14361905]
[1735481276976,0.23060373,95272.0,95271.0,1.12262605]
[1735481277474,0.23060373,95272.0,95271.0,1.10163305]
[1735481277649,0.23060373,95272.0,95271.0,1.08064005]
[1735481278091,0.23060373,95272.0,95271.0,1.01756605]
[1735481278724,0.23060373,95272.0,95271.0,0.99657305]
[1735481278906,0.33060373,95272.0,95271.0,0.93359405]
[1735481279114,0.33060373,95272.0,95271.0,0.91260105]
[1735481279761,0.33060373,95272.0,95271.0,0.89160805]
[1735481280164,0.43459005,95272.0,95271.0,0.74431674]
[1735481280371,0.55939005,95272.0,95271.0,0.72311774]
[1735481280778,0.65739756,95272.0,95271.0,0.45057703]
[1735481280984,0.65739756,95272.0,95271.0,0.36900803]
[1735481280985,0.65779052,95272.0,95271.0,0.36900803]
[1735481281345,0.75779052,95272.0,95271.0,0.36900803]
[1735481281526,0.75779052,95272.0,95271.0,0.36000803]
[1735481281737,0.75779052,95272.0,95271.0,0.33901203]
[1735481281938,0.75779052,95272.0,95271.0,0.27601603]
[1735481282137,0.76279052,95272.0,95271.0,0.21402803]
[1735481282535,0.76279052,95272.0,95271.0,0.15902803]
[1735481282741,0.76279052,95272.0,95271.0,0.13803103]
[1735481282948,0.76279052,95272.0,95271.0,0.09603603]
[1735481283152,0.76279052,95272.0,95271.0,0.01845734]
[1735481283357,0.435173,95250.0,95249.0,0.0001708]
[1735481283653,0.435173,95250.0,95241.0,6e-07]
[1735481283876,0.209991,95242.0,95241.0,6e-07]
[1735481284071,0.1,95238.0,95237.0,4e-07]
[1735481284275,0.10131268,95238.0,95237.0,0.00050946]
[1735481285577,0.10131268,95238.0,95237.0,0.00250946]
[1735481285814,0.00131268,95238.0,95237.0,0.00250946]
[1735481285989,0.21,95238.0,95237.0,0.00250946]
[1735481286142,0.21,95238.0,95237.0,4.6e-07]
[1735481286343,0.210004,95236.0,95234.0,6e-08]
[1735481286577,0.0013127,95235.0,95234.0,0.00013873]
[1735481288045,0.0834127,95235.0,95234.0,7.3e-07]
[1735481288300,0.310017,95230.0,95229.0,5.3e-07]
[1735481288722,0.210037,95221.0,95220.0,0.09363414]
[1735481289157,0.210037,95221.0,95220.0,0.000171]